bitfinex/quotes_SOLUSD_20250611
["timestamp","ask_amount","ask_price","bid_price","bid_amount"]
[1749629107914,10.11734432,166.8,166.77,18.64964886]
[1749629110605,10.11734432,166.79,166.76,18.64964886]
[1749629110807,5.36,166.83,166.76,28.76699318]
[1749629111002,10.11734432,166.81,166.76,28.76699318]
[1749629111203,5.36,166.83,166.76,18.64964886]
[1749629111604,10.11734432,166.8,166.76,18.64964886]
[1749629112397,5.36,166.83,166.79,28.76699318]
[1749629112603,5.36,166.83,166.82,18.64964886]
[1749629113024,5.36,166.83,166.8,18.64964886]
[1749629113025,15.47734432,166.83,166.8,18.64964886]
[1749629113221,10.11734432,166.81,166.76,89.9]
[1749629113427,10.11734432,166.8,166.76,18.64964886]
[1749629114011,10.11734432,166.79,166.76,18.64964886]
[1749629114710,10.11734432,166.8,166.76,18.64964886]
[1749629115027,10.11734432,166.79,166.76,18.64964886]
[1749629115227,5.36,166.83,166.76,18.64964886]
[1749629115532,10.11734432,166.88,166.82,28.76699318]
[1749629115855,5.36,166.89,166.84,18.64964886]
[1749629115856,10.11734432,166.85,166.84,18.64964886]
[1749629116025,10.11734432,166.85,166.79,89.9]
[1749629116332,5.36,166.89,166.83,26.0]
[1749629116511,10.11734432,166.88,166.84,18.64964886]
[1749629116707,10.11734432,166.85,166.84,18.64964886]
[1749629117011,10.11734432,166.85,166.81,10.11734432]
[1749629117012,10.11734432,166.85,166.81,18.64964886]
[1749629117216,5.36,166.89,166.8,18.64964886]
[1749629117415,10.11734432,166.87,166.83,18.64964886]
[1749629118207,10.11734432,166.88,166.83,28.76699318]
[1749629118406,10.11734432,166.87,166.83,18.64964886]
[1749629119224,10.11734432,166.86,166.83,18.64964886]
[1749629121324,10.11734432,166.85,166.81,18.64964886]
[1749629121526,10.11734432,166.86,166.81,10.11734432]
[1749629122339,10.11734432,166.87,166.83,18.64964886]
[1749629122536,10.11734432,166.88,166.84,18.64964886]
[1749629122839,5.36,166.89,166.87,18.64964886]
[1749629123149,5.36,166.89,166.88,28.76699318]
[1749629123923,5.36,166.89,166.88,18.64964886]
[1749629124118,5.36,166.89,166.88,28.76699318]
[1749629124830,5.36,166.89,166.88,34.75932299]
[1749629125049,5.36,166.89,166.88,28.76699318]
[1749629125369,5.36,166.89,166.88,35.47840058]
[1749629126449,5.36,166.89,166.88,18.64964886]
[1749629127056,5.36,166.89,166.88,35.47840058]
[1749629127430,5.36,166.89,166.88,41.47073039]
[1749629127750,5.36,166.89,166.88,35.47840058]
[1749629128831,5.36,166.89,166.88,41.47073039]
[1749629129343,5.36,166.89,166.88,35.47840058]
[1749629129550,5.36,166.89,166.88,41.47073039]
[1749629129924,22.18875172,166.97,166.89,18.64964886]
[1749629130127,22.18875172,166.97,166.93,18.64964886]
[1749629130324,5.36,166.97,166.93,18.64964886]
[1749629130554,16.82875172,166.96,166.92,18.64964886]
[1749629131046,22.18875172,166.97,166.9,18.64964886]
[1749629131227,16.82875172,166.96,166.92,18.64964886]
[1749629131433,22.18875172,166.97,166.92,35.47840058]
[1749629133036,16.82875172,166.96,166.9,18.64964886]
[1749629133257,16.82875172,166.96,166.89,95.89196061]
[1749629133258,16.82875172,166.96,166.92,18.64964886]
[1749629133952,16.82875172,166.96,166.91,35.47840058]
[1749629134152,5.36,166.97,166.91,18.64964886]
[1749629134354,16.82875172,166.95,166.9,35.47840058]
[1749629134739,5.36,166.97,166.9,35.47840058]
[1749629134946,16.82875172,166.95,166.9,18.64964886]
[1749629135333,16.82875172,166.93,166.9,18.64964886]
[1749629135628,16.82875172,166.91,166.88,18.64964886]
[1749629136463,16.82875172,166.91,166.86,18.64964886]
[1749629137528,16.82875172,166.9,166.86,18.64964886]
[1749629138523,16.82875172,166.88,166.86,18.64964886]
[1749629138728,16.82875172,166.87,166.84,18.64964886]
[1749629138935,16.82875172,166.86,166.84,18.64964886]
[1749629139228,16.82875172,166.88,166.84,18.64964886]
[1749629140256,16.82875172,166.88,166.82,18.64964886]
[1749629140460,16.82875172,166.88,166.84,18.64964886]
[1749629142865,1.6035,166.94,166.87,18.64964886]
[1749629143061,16.82875172,166.91,166.87,18.64964886]
[1749629143260,16.82875172,166.92,166.87,35.47840058]
[1749629143640,11.3831,166.97,166.89,16.82875172]
[1749629143850,11.3831,166.97,166.87,18.64964886]
[1749629143851,16.82875172,166.95,166.9,26.0]
[1749629144048,16.82875172,166.91,166.88,18.64964886]
[1749629144253,11.3831,166.97,166.83,44.64964886]
[1749629144254,16.82875172,166.89,166.83,44.64964886]
[1749629144560,26.0,166.95,166.86,18.64964886]
[1749629144561,16.82875172,166.88,166.86,18.64964886]
[1749629145148,16.82875172,166.87,166.83,18.64964886]
[1749629146857,16.82875172,166.88,166.83,18.64964886]
[1749629147234,26.0,166.93,166.85,18.64964886]
[1749629147439,26.0,166.93,166.86,10.10513278]
[1749629147440,10.10513278,166.91,166.86,10.10513278]
[1749629147839,26.0,166.95,166.83,24.64365568]
[1749629147840,10.10513278,166.89,166.83,18.64964886]
[1749629148039,10.10513278,166.89,166.85,18.64964886]
[1749629148550,10.10513278,166.9,166.87,18.64964886]
[1749629148945,37.3831,166.97,166.87,18.64964886]
[1749629149145,10.10513278,166.92,166.87,28.75478164]
[1749629149363,10.10513278,166.91,166.87,18.64964886]
[1749629149853,10.10513278,166.96,166.87,18.64964886]
[1749629150045,10.10513278,166.91,166.87,18.64964886]
[1749629150654,10.10513278,166.92,166.87,18.64964886]
[1749629150945,10.10513278,166.93,166.89,18.64964886]
[1749629151262,10.10513278,166.96,166.91,18.64964886]
[1749629151475,5.36,166.97,166.91,28.75478164]
[1749629151772,10.10513278,166.96,166.91,30.33908164]
[1749629153262,5.36,166.97,166.93,28.75478164]
[1749629153458,11.69313278,167.04,166.95,18.64964886]
[1749629153459,10.10513278,167.0,166.95,18.64964886]
[1749629153777,10.10513278,166.98,166.94,18.64964886]
[1749629154067,10.10513278,166.98,166.93,18.64964886]
[1749629154276,10.10513278,166.98,166.96,18.64964886]
[1749629155456,10.10513278,167.0,166.96,18.64964886]
[1749629155654,10.10513278,166.99,166.96,18.64964886]
[1749629158254,10.10513278,167.0,166.96,18.64964886]
[1749629159071,5.42,167.03,166.96,18.64964886]
[1749629159273,10.10513278,167.0,166.96,18.64964886]
[1749629159757,10.10513278,166.99,166.96,18.64964886]
[1749629160572,10.10513278,166.99,166.95,115.9]
[1749629160573,10.10513278,166.97,166.95,89.9]
[1749629161875,5.42,167.03,166.95,89.9]
[1749629162067,10.10513278,166.98,166.95,89.9]
[1749629162679,10.10513278,166.99,166.96,18.64964886]
[1749629162977,5.42,167.03,166.96,18.64964886]
[1749629162978,10.10513278,167.0,166.96,18.64964886]
[1749629163479,10.10513278,166.99,166.96,18.64964886]
[1749629165158,10.10513278,166.98,166.96,18.64964886]
[1749629165554,5.42,167.03,166.96,18.64964886]
[1749629165766,10.10513278,166.98,166.96,18.64964886]
[1749629166175,10.10513278,166.98,166.94,18.64964886]
[1749629166558,10.10513278,166.99,166.94,54.75478164]
[1749629167360,10.10513278,167.0,166.94,54.75478164]
[1749629167685,10.10513278,167.0,166.95,10.10513278]
[1749629167986,10.10513278,166.99,166.94,54.75478164]
[1749629168364,10.10513278,166.98,166.94,44.64964886]
[1749629168766,10.10513278,167.0,166.96,18.64964886]
[1749629169262,10.10513278,167.01,166.96,18.64964886]
[1749629169462,2.48773009,167.05,167.0,30.38018164]
[1749629169678,2.48773009,167.05,167.03,10.10513278]
[1749629170267,2.48773009,167.05,167.0,20.27504886]
[1749629170268,2.48773009,167.05,167.02,10.10513278]
[1749629170470,10.10513278,167.04,167.0,1.6254]
[1749629170790,10.10513278,167.01,166.99,26.0]
[1749629171163,2.48773009,167.05,166.99,26.0]
[1749629171387,2.48773009,167.05,167.0,44.64964886]
[1749629171571,10.10513278,167.04,167.0,44.64964886]
[1749629171782,2.48773009,167.05,167.0,44.64964886]
[1749629171992,2.48773009,167.05,167.0,54.75478164]
[1749629172373,10.10513278,167.04,167.0,44.64964886]
[1749629173883,10.10513278,167.03,167.0,26.0]
[1749629174588,10.10513278,167.02,167.0,26.0]
[1749629174779,10.10513278,167.01,166.94,89.9]
[1749629174965,10.10513278,167.01,166.9,6.4911]
[1749629174966,10.10513278,166.95,166.9,1.6016]
[1749629175167,10.10513278,166.94,166.9,1.6016]
[1749629175367,10.10513278,166.95,166.92,26.0]
[1749629175667,5.44,166.96,166.9,1.6016]
[1749629175893,10.10513278,166.95,166.9,11.70673278]
[1749629176075,10.10513278,166.95,166.91,18.64964886]
[1749629178477,10.10513278,166.94,166.91,18.64964886]
[1749629178791,10.10513278,166.93,166.91,44.64964886]
[1749629179284,10.10513278,166.92,166.88,18.64964886]
[1749629179484,10.10513278,166.91,166.9,26.0]
[1749629179694,10.10513278,166.91,166.86,8.0538]
[1749629179889,10.10513278,166.89,166.86,1.5999]
[1749629180067,10.10513278,166.89,166.87,18.64964886]
[1749629181196,10.10513278,166.89,166.84,18.64964886]
[1749629181394,10.10513278,166.88,166.87,18.64964886]
[1749629181598,10.10513278,166.88,166.86,26.0]
[1749629181769,10.10513278,166.87,166.86,26.0]
[1749629181970,10.10513278,166.87,166.83,18.64964886]
[1749629182197,10.10513278,166.86,166.83,18.64964886]
[1749629182394,10.10513278,166.86,166.83,44.64964886]
[1749629182903,10.10513278,166.85,166.83,44.64964886]
[1749629183274,10.10513278,166.84,166.83,44.64964886]
[1749629184699,10.10513278,166.84,166.78,22.76605075]
[1749629184999,10.10513278,166.81,166.79,18.64964886]
[1749629185911,10.10513278,166.81,166.79,44.64964886]
[1749629186077,10.10513278,166.8,166.74,16.55893278]
[1749629186275,10.10513278,166.79,166.75,18.64964886]
[1749629186475,10.10513278,166.78,166.75,18.64964886]
[1749629186700,10.10513278,166.78,166.75,44.64964886]
[1749629187614,10.10513278,166.76,166.71,20.70645759]
[1749629187908,10.10513278,166.8,166.74,18.64964886]
[1749629187909,10.10513278,166.75,166.74,18.64964886]
[1749629188211,10.10513278,166.75,166.74,44.64964886]
[1749629188414,10.10513278,166.75,166.74,18.64964886]
[1749629188613,38.0932,166.86,166.75,18.64964886]
[1749629188825,5.44,166.85,166.8,18.64964886]
[1749629189181,10.10513278,166.81,166.8,18.64964886]
[1749629189917,10.10513278,166.82,166.8,18.64964886]
[1749629190207,5.44,166.85,166.8,18.64964886]
[1749629190505,10.10513278,166.81,166.8,18.64964886]
[1749629190996,10.10513278,166.81,166.78,44.64964886]
[1749629191192,10.10513278,166.79,166.78,18.64964886]
[1749629191698,10.10513278,166.79,166.76,26.0]
[1749629191895,10.10513278,166.78,166.76,18.64964886]
[1749629192892,10.10513278,166.78,166.77,18.64964886]
[1749629193402,10.10513278,166.79,166.77,18.64964886]
[1749629194005,10.10513278,166.78,166.73,11.66323278]
[1749629194209,10.10513278,166.77,166.74,44.64964886]
[1749629194518,10.10513278,166.75,166.7,96.4382]
[1749629194688,10.10513278,166.74,166.7,18.64964886]
[1749629194883,10.10513278,166.75,166.7,28.75478164]
[1749629195217,10.10513278,166.75,166.72,18.64964886]
[1749629195594,10.10513278,166.8,166.72,18.64964886]
[1749629195800,10.10513278,166.75,166.72,18.64964886]
[1749629197107,10.10513278,166.73,166.72,18.64964886]
[1749629197612,10.10513278,166.73,166.68,89.9]
[1749629197924,10.10513278,166.73,166.65,8.37298397]
[1749629197925,5.44,166.75,166.69,18.64964886]
[1749629199102,10.10513278,166.7,166.69,18.64964886]
[1749629199707,10.10513278,166.7,166.67,18.64964886]
[1749629201006,10.10513278,166.69,166.67,18.64964886]
[1749629201204,10.10513278,166.68,166.64,1.5215]
[1749629201518,10.10513278,166.65,166.6,6.50807715]
[1749629201828,10.10513278,166.65,166.6,4.84317715]
[1749629201829,10.10513278,166.61,166.6,4.84317715]
[1749629201993,5.44,166.65,166.61,18.64964886]
[1749629202191,15.54513278,166.65,166.61,18.64964886]
[1749629202589,6.5887,166.7,166.63,18.64964886]
[1749629202791,10.10513278,166.64,166.55,106.42966401]
[1749629202995,10.10513278,166.62,166.57,36.10513278]
[1749629203429,10.10513278,166.63,166.59,18.64964886]
[1749629203797,10.10513278,166.63,166.59,44.64964886]
[1749629204918,10.10513278,166.65,166.6,10.10513278]
[1749629205222,16.88805049,166.64,166.61,18.64964886]
[1749629206318,16.88805049,166.68,166.63,20.24384886]
[1749629206535,16.88805049,166.65,166.63,18.64964886]
[1749629206816,16.88805049,166.64,166.62,26.0]
[1749629206999,16.88805049,166.63,166.6,18.64964886]
[1749629207199,16.88805049,166.61,166.6,18.64964886]
[1749629207910,16.88805049,166.62,166.6,18.64964886]
[1749629208236,16.88805049,166.61,166.6,18.64964886]
[1749629212031,16.88805049,166.61,166.56,18.64964886]
[1749629212328,16.88805049,166.59,166.56,18.64964886]
[1749629213458,16.88805049,166.58,166.56,18.64964886]
[1749629213605,16.88805049,166.57,166.53,8.37298397]
[1749629213807,16.88805049,166.55,166.52,18.64964886]
[1749629214016,5.44,166.59,166.5,16.88805049]
[1749629214017,16.88805049,166.53,166.5,18.64964886]
[1749629214235,5.44,166.59,166.5,44.64964886]
[1749629214406,16.88805049,166.51,166.49,8.33333333]
[1749629214818,16.88805049,166.52,166.49,8.33333333]
[1749629215026,16.88805049,166.52,166.5,18.64964886]
[1749629215222,16.88805049,166.51,166.5,18.64964886]
[1749629215735,16.88805049,166.51,166.49,8.33333333]
[1749629217323,16.88805049,166.53,166.5,18.64964886]
[1749629217707,16.88805049,166.51,166.49,8.33333333]
[1749629217926,1.6245,166.57,166.49,8.33333333]
[1749629218134,16.88805049,166.5,166.49,8.33333333]
[1749629219420,1.6245,166.57,166.49,8.33333333]
[1749629219736,16.88805049,166.51,166.49,8.33333333]
[1749629219935,16.88805049,166.5,166.49,8.33333333]
[1749629221348,1.6245,166.57,166.49,8.33333333]
[1749629221514,16.88805049,166.51,166.49,8.33333333]
[1749629222227,7.9878,166.62,166.54,18.64964886]
[1749629222534,5.48,166.58,166.56,18.64964886]
[1749629222739,5.48,166.63,166.56,16.88805049]
[1749629222933,16.88805049,166.61,166.56,16.88805049]
[1749629223246,16.88805049,166.6,166.56,16.88805049]
[1749629223423,16.88805049,166.62,166.57,35.53769935]
[1749629223632,5.48,166.63,166.61,18.64964886]
[1749629223831,7.9878,166.71,166.61,35.53769935]
[1749629224052,16.88805049,166.64,166.61,18.64964886]
[1749629224218,16.88805049,166.65,166.61,18.64964886]
[1749629224418,5.48,166.68,166.61,18.64964886]
[1749629224643,16.88805049,166.64,166.61,18.64964886]
[1749629224937,16.88805049,166.66,166.61,18.64964886]
[1749629225112,16.88805049,166.66,166.61,35.53769935]
[1749629225523,16.88805049,166.65,166.61,18.64964886]
[1749629225735,5.48,166.68,166.61,18.64964886]
[1749629225937,16.88805049,166.66,166.61,35.53769935]
[1749629226249,16.88805049,166.67,166.63,18.64964886]
[1749629226537,5.48,166.68,166.65,18.64964886]
[1749629226927,22.36805049,166.68,166.65,18.64964886]
[1749629227441,16.88805049,166.66,166.65,18.64964886]
[1749629227652,5.48,166.68,166.65,18.64964886]
[1749629227821,16.88805049,166.67,166.65,18.64964886]
[1749629228141,16.88805049,166.67,166.63,18.64964886]
[1749629229039,22.36805049,166.68,166.63,35.53769935]
[1749629230043,16.88805049,166.67,166.63,18.64964886]
[1749629230626,16.88805049,166.66,166.63,18.64964886]
[1749629230829,16.88805049,166.67,166.63,18.64964886]
[1749629231940,5.48,166.68,166.67,18.64964886]
[1749629232928,5.48,166.68,166.61,16.02998397]
[1749629233133,16.88805049,166.67,166.62,35.53769935]
[1749629233323,16.88805049,166.67,166.62,18.64964886]
[1749629233521,16.88805049,166.67,166.62,35.53769935]
[1749629234927,16.88805049,166.66,166.62,18.64964886]
[1749629235228,16.88805049,166.66,166.61,18.49335049]
[1749629235229,10.13373943,166.64,166.6,18.64964886]
[1749629236725,10.13373943,166.61,166.58,18.64964886]
[1749629237143,10.13373943,166.62,166.58,18.64964886]
[1749629237324,10.13373943,166.63,166.58,28.78338829]
[1749629238142,10.13373943,166.63,166.58,18.64964886]
[1749629238352,10.13373943,166.62,166.58,18.64964886]
[1749629238732,10.13373943,166.61,166.58,18.64964886]
[1749629239446,6.653,166.66,166.57,18.64964886]
[1749629239667,10.13373943,166.61,166.57,18.64964886]
[1749629240028,10.13373943,166.62,166.57,28.78338829]
[1749629242551,10.13373943,166.61,166.57,18.64964886]
[1749629243058,10.13373943,166.6,166.55,10.13373943]
[1749629243244,5.46,166.69,166.61,1.6408]
[1749629243476,5.46,166.69,166.65,10.13373943]
[1749629244027,15.59373943,166.69,166.65,10.13373943]
[1749629244336,10.13373943,166.67,166.61,1.6408]
[1749629244536,10.13373943,166.68,166.63,10.13373943]
[1749629244977,15.59373943,166.69,166.64,10.13373943]
[1749629245758,10.13373943,166.67,166.62,28.78338829]
[1749629246153,10.13373943,166.66,166.62,18.64964886]
[1749629247945,31.46,166.69,166.59,18.64964886]
[1749629248148,10.13373943,166.66,166.62,18.64964886]
[1749629248345,10.13373943,166.67,166.62,28.78338829]
[1749629248953,10.13373943,166.67,166.62,10.13373943]
[1749629250571,10.13373943,166.67,166.63,18.64964886]
[1749629250864,10.13373943,166.67,166.61,18.64964886]
[1749629251040,10.13373943,166.67,166.63,18.64964886]
[1749629252046,31.46,166.69,166.63,18.64964886]
[1749629252254,5.46,166.69,166.66,10.13373943]
[1749629252431,5.46,166.69,166.65,28.78338829]
[1749629253648,5.46,166.69,166.63,18.64964886]
[1749629253649,10.13373943,166.67,166.63,18.64964886]
[1749629254155,10.13373943,166.66,166.62,18.64964886]
[1749629254353,10.13373943,166.67,166.62,18.64964886]
[1749629254735,10.13373943,166.68,166.63,10.13373943]
[1749629255539,15.59373943,166.69,166.63,10.13373943]
[1749629255740,15.59373943,166.69,166.65,18.64964886]
[1749629257456,5.46,166.69,166.65,28.78338829]
[1749629257764,5.46,166.69,166.66,10.13373943]
[1749629258062,5.46,166.69,166.66,28.78338829]
[1749629260760,5.46,166.69,166.67,10.13373943]
[1749629260958,5.46,166.69,166.68,18.64964886]
[1749629261845,15.59373943,166.69,166.61,16.49778397]
[1749629262046,10.13373943,166.67,166.63,18.64964886]
[1749629262548,10.13373943,166.67,166.62,28.78338829]
[1749629262956,10.13373943,166.68,166.63,10.13373943]
[1749629263156,10.13373943,166.68,166.62,18.64964886]
[1749629263157,5.46,166.69,166.65,18.64964886]
[1749629263351,15.59373943,166.69,166.65,18.64964886]
[1749629264074,5.46,166.69,166.65,18.64964886]
[1749629264369,15.59373943,166.69,166.65,18.64964886]
[1749629266071,15.59373943,166.69,166.66,0.69830997]
[1749629266471,15.59373943,166.69,166.65,18.64964886]
[1749629266774,4.76132458,166.69,166.65,18.64964886]
[1749629266969,4.76132458,166.69,166.66,0.30168292]
[1749629267275,4.76132458,166.69,166.65,28.78338829]
[1749629268491,4.76132458,166.69,166.67,18.64964886]
[1749629269054,4.76132458,166.69,166.65,10.13373943]
[1749629269981,4.76132458,166.69,166.66,18.64964886]
[1749629270953,4.76132458,166.69,166.61,16.49778397]
[1749629270954,4.76132458,166.69,166.67,28.78338829]
[1749629271162,4.76132458,166.69,166.68,28.78338829]
[1749629272671,4.76132458,166.69,166.68,30.33308829]
[1749629272869,4.76132458,166.69,166.68,36.33260832]
[1749629273078,10.13373943,166.75,166.68,36.33260832]
[1749629273280,10.13373943,166.75,166.71,18.64964886]
[1749629273519,4.74812748,166.76,166.73,18.64964886]
[1749629273665,4.74812748,166.76,166.73,28.78338829]
[1749629274575,4.74812748,166.76,166.73,10.13373943]
[1749629274757,4.74812748,166.76,166.7,18.64964886]
[1749629274953,4.74812748,166.76,166.74,10.13373943]
[1749629275686,4.74812748,166.76,166.73,10.13373943]
[1749629276884,4.74812748,166.76,166.75,18.64964886]
[1749629277481,4.74812748,166.76,166.75,10.13373943]
[1749629277892,4.74812748,166.76,166.75,18.64964886]
[1749629279204,4.74812748,166.76,166.75,10.13373943]
[1749629281585,14.88186691,166.76,166.69,6.0477]
[1749629281790,10.13373943,166.74,166.69,28.78338829]
[1749629282007,10.13373943,166.75,166.72,18.64964886]
[1749629282183,10.13373943,166.74,166.71,18.64964886]
[1749629282522,10.13373943,166.72,166.64,11.79103943]
[1749629282800,10.13373943,166.66,166.61,10.13373943]
[1749629283007,26.0,166.72,166.64,10.13373943]
[1749629283195,10.13373943,166.69,166.65,18.64964886]
[1749629283507,10.13373943,166.72,166.67,10.13373943]
[1749629283703,10.13373943,166.72,166.69,18.64964886]
[1749629284493,10.13373943,166.75,166.71,18.64964886]
[1749629284890,10.13373943,166.74,166.69,10.13373943]
[1749629285107,10.13373943,166.71,166.67,18.64964886]
[1749629286107,10.13373943,166.71,166.64,6.00089801]
[1749629286108,10.13373943,166.69,166.64,10.13373943]
[1749629286406,10.13373943,166.68,166.65,18.64964886]
[1749629286912,10.13373943,166.69,166.65,18.64964886]
[1749629288008,26.0,166.75,166.65,18.64964886]
[1749629288198,10.13373943,166.71,166.66,10.13373943]
[1749629288599,10.13373943,166.7,166.65,18.64964886]
[1749629288796,10.13373943,166.7,166.65,28.78338829]
[1749629289315,10.13373943,166.68,166.64,18.64964886]
[1749629289500,10.13373943,166.67,166.64,18.64964886]
[1749629289693,10.13373943,166.68,166.64,18.64964886]
[1749629290493,15.55373943,166.7,166.66,18.64964886]
[1749629290693,5.42,166.7,166.66,28.78338829]
[1749629290896,15.55373943,166.7,166.66,18.64964886]
[1749629291799,10.13373943,166.69,166.62,18.64964886]
[1749629291993,10.13373943,166.69,166.65,18.64964886]
[1749629292186,5.42,166.7,166.64,18.64964886]
[1749629292187,10.13373943,166.68,166.64,18.64964886]
[1749629293300,10.13373943,166.69,166.64,10.13373943]
[1749629293495,10.13373943,166.69,166.65,18.64964886]
[1749629294509,10.13373943,166.68,166.65,18.64964886]
[1749629295320,15.55373943,166.7,166.65,28.78338829]
[1749629295904,15.55373943,166.7,166.65,34.78391414]
[1749629296218,15.55373943,166.7,166.65,28.78338829]
[1749629296716,5.42,166.7,166.67,10.13373943]
[1749629297298,5.42,166.7,166.67,18.64964886]
[1749629297721,15.55373943,166.7,166.67,18.64964886]
[1749629298918,15.55373943,166.7,166.66,18.64964886]
[1749629299629,15.55373943,166.7,166.64,89.9]
[1749629299630,26.0,166.69,166.64,89.9]
[1749629299923,10.13373943,166.67,166.62,18.64964886]
[1749629301601,10.13373943,166.66,166.61,28.78338829]
[1749629301796,36.13373943,166.67,166.61,28.78338829]
[1749629302396,36.13373943,166.67,166.62,10.13373943]
[1749629303223,10.13373943,166.64,166.58,8.37298397]
[1749629303423,10.13373943,166.64,166.59,18.64964886]
[1749629304314,10.13373943,166.63,166.59,18.64964886]
[1749629304928,10.13373943,166.6,166.51,1.57]
[1749629305109,10.13373943,166.57,166.51,11.70373943]
[1749629305829,10.13373943,166.57,166.52,18.64964886]
[1749629306538,10.13373943,166.57,166.52,28.78338829]
[1749629307204,10.13373943,166.57,166.52,34.78865034]
[1749629308706,10.13373943,166.58,166.53,10.13373943]
[1749629308901,31.42,166.6,166.56,10.13373943]
[1749629309116,15.55373943,166.63,166.57,28.78338829]
[1749629309325,15.55373943,166.63,166.59,18.64964886]
[1749629309515,10.13373943,166.62,166.59,18.64964886]
[1749629310307,10.13373943,166.62,166.57,16.13721569]
[1749629310915,15.55373943,166.63,166.58,28.78338829]
[1749629312133,5.42,166.63,166.58,28.78338829]
[1749629312327,5.42,166.63,166.58,34.78637857]
[1749629312627,5.42,166.63,166.59,10.13373943]
[1749629312815,5.42,166.63,166.6,28.78338829]
[1749629313015,5.42,166.63,166.61,10.13373943]
[1749629313220,5.44,166.7,166.62,10.13373943]
[1749629313431,15.57373943,166.7,166.65,10.13373943]
[1749629313733,5.44,166.7,166.66,18.64964886]
[1749629313916,5.44,166.7,166.67,10.13373943]
[1749629314513,5.44,166.7,166.66,10.13373943]
[1749629314729,15.57373943,166.7,166.65,10.13373943]
[1749629314917,15.57373943,166.7,166.64,10.13373943]
[1749629314918,10.13373943,166.69,166.64,10.13373943]
[1749629315114,5.44,166.7,166.68,10.13373943]
[1749629315315,5.44,166.7,166.69,10.13373943]
[1749629315519,5.44,166.7,166.69,28.78338829]
[1749629315735,5.44,166.7,166.69,18.64964886]
[1749629315920,5.44,166.7,166.68,18.64964886]
[1749629317550,15.57373943,166.7,166.65,10.13373943]
[1749629317713,15.57373943,166.7,166.62,1.6332]
[1749629317714,10.13373943,166.68,166.64,18.64964886]
[1749629318241,10.13373943,166.69,166.64,10.13373943]
[1749629318617,10.13373943,166.68,166.63,28.78338829]
[1749629319120,10.13373943,166.67,166.63,18.64964886]
[1749629319330,10.13373943,166.66,166.61,10.13373943]
[1749629319931,10.13373943,166.67,166.61,10.13373943]
[1749629322136,31.44,166.7,166.63,10.13373943]
[1749629322137,10.13373943,166.68,166.63,10.13373943]
[1749629322316,26.0,166.69,166.64,10.13373943]
[1749629322317,36.13373943,166.69,166.64,10.13373943]
[1749629322518,10.13373943,166.66,166.61,10.13373943]
[1749629322715,10.13373943,166.65,166.6,10.13373943]
[1749629322928,10.13373943,166.65,166.61,18.64964886]
[1749629323342,36.13373943,166.66,166.61,28.78338829]
[1749629324142,36.13373943,166.66,166.61,18.64964886]
[1749629324523,10.13373943,166.64,166.61,18.64964886]
[1749629325546,10.13373943,166.65,166.61,18.64964886]
[1749629326546,10.13373943,166.64,166.59,10.13373943]
[1749629326722,10.13373943,166.64,166.6,18.64964886]
[1749629328149,26.0,166.66,166.57,18.64964886]
[1749629328150,10.13373943,166.61,166.57,18.64964886]
[1749629329951,10.13373943,166.62,166.57,18.64964886]
[1749629330334,10.13373943,166.62,166.57,28.78338829]
[1749629331530,6.0289,166.67,166.57,28.78338829]
[1749629331531,26.0,166.64,166.6,10.13373943]
[1749629331963,36.13373943,166.64,166.59,10.13373943]
[1749629333352,26.0,166.66,166.59,10.13373943]
[1749629333647,10.13373943,166.65,166.6,10.13373943]
[1749629333848,10.13373943,166.64,166.59,10.13373943]
[1749629334542,10.13373943,166.63,166.58,18.64964886]
[1749629334947,10.13373943,166.63,166.58,108.54964886]
[1749629337159,10.13373943,166.63,166.58,118.68338829]
[1749629337361,10.13373943,166.59,166.58,89.9]
[1749629337551,10.13373943,166.59,166.54,1.566]
[1749629337747,10.13373943,166.58,166.54,1.566]
[1749629338054,5.44,166.6,166.54,1.566]
[1749629338055,10.13373943,166.57,166.54,18.64964886]
[1749629338567,5.44,166.6,166.52,89.9]
[1749629338568,10.13373943,166.58,166.53,28.78338829]
[1749629340759,36.13373943,166.64,166.53,18.64964886]
[1749629340933,10.13373943,166.66,166.61,10.13373943]
[1749629341139,26.0,166.65,166.61,10.13373943]
[1749629341350,26.0,166.65,166.6,10.13373943]
[1749629341351,36.13373943,166.65,166.6,10.13373943]
[1749629341946,10.13373943,166.65,166.6,10.13373943]
[1749629342136,10.13373943,166.66,166.61,10.13373943]
[1749629342643,26.0,166.64,166.6,10.13373943]
[1749629343649,26.0,166.64,166.61,28.78338829]
[1749629344350,26.0,166.64,166.62,10.13373943]
[1749629345651,26.0,166.64,166.61,10.13373943]
[1749629346962,26.0,166.64,166.6,10.13373943]
[1749629347153,26.0,166.64,166.61,10.13373943]
[1749629348663,26.0,166.64,166.6,18.64964886]
[1749629348861,26.0,166.64,166.61,10.13373943]